fUSD/lending_fUSD_20260115
["ID","MTS","AMOUNT","RATE_DAILY","PERIOD"]
[402094970,1768517439316,-300.0,0.00017483,2]
[402094972,1768517439326,-250.0,0.00017483,2]
[402094974,1768517439335,-1006.00992652,0.00017521,2]
[402094975,1768517439344,-500.0,0.00017521,2]
[402094977,1768517439354,-1000.0,0.00017521,2]
[402094980,1768517439363,-1000.0,0.00017521,2]
[402094982,1768517439373,-1000.0,0.00017521,2]
[402094984,1768517439381,-836.16412022,0.00017521,2]
[402094986,1768517439391,-4892.0,0.00017537,2]
[402094987,1768517439400,-4892.0,0.00017573,2]
[402094989,1768517439409,-1545.58,0.00017623,2]
[402094991,1768517439418,-4892.0,0.00017627,2]
[402094993,1768517439427,-4892.0,0.00017701,2]
[402094996,1768517439436,-600.0,0.00017738,2]
[402094997,1768517439445,-300.0,0.00017738,2]
[402095000,1768517439456,-4892.0,0.00017855,2]
[402095002,1768517439467,-1545.58,0.00017897,2]
[402095004,1768517439476,-500.0,0.00017972,2]
[402095005,1768517439485,-500.0,0.00017973,2]
[402095007,1768517439495,-500.0,0.00017973,2]
[402095010,1768517439504,-500.0,0.00017973,2]
[402095012,1768517439515,-500.0,0.00017973,2]
[402095014,1768517439526,-500.0,0.00017973,2]
[402095016,1768517439535,-500.0,0.00017973,2]
[402095018,1768517439545,-500.0,0.00017973,2]
[402095020,1768517439555,-500.0,0.00017973,2]
[402095022,1768517439565,-500.0,0.00017973,2]
[402095024,1768517439575,-500.0,0.00017973,2]
[402095025,1768517439584,-500.0,0.00017973,2]
[402095028,1768517439595,-500.0,0.00017973,2]
[402095029,1768517439604,-186.35849238,0.00017973,2]
[402095032,1768517439615,-639.552,0.00017973,2]
[402095034,1768517439624,-500.0,0.00017973,2]
[402095036,1768517439639,-500.0,0.00017973,2]
[402095038,1768517439648,-150.0,0.00017973,2]
[402095040,1768517439658,-500.0,0.00017973,2]
[402095041,1768517439668,-500.0,0.00017973,2]
[402095044,1768517439678,-500.0,0.00017973,2]
[402095045,1768517439688,-4892.0,0.0001804,2]
[402095047,1768517439697,-4892.0,0.00018045,2]
[402095050,1768517439707,-4892.0,0.00018066,2]
[402095052,1768517439717,-500.0,0.00018068,2]
[402095053,1768517439727,-500.0,0.00018068,2]
[402095055,1768517439736,-1000.0,0.00018068,2]
[402095057,1768517439745,-39714.66661979,0.00018111,2]
[402095059,1768517439755,-4892.0,0.00018133,2]
[402095062,1768517439763,-4892.0,0.00018165,2]
[402095064,1768517439772,-1545.58,0.00018171,2]
[402095066,1768517439782,-4892.0,0.00018193,2]
[402095068,1768517439791,-4892.0,0.00018205,2]
[402095069,1768517439800,-4892.0,0.00018216,2]
[402095071,1768517439809,-4892.0,0.00018272,2]
[402095073,1768517439819,-151.44482603,0.00018314,5]
[402095076,1768517439829,-4892.0,0.0001837,2]
[402095078,1768517439839,-5490.84534686,0.00018397,2]
[402095081,1768517439858,-216.28,0.00018417,2]
[402095083,1768517439868,-155.9,0.00018427,2]
[402095085,1768517439877,-3726.35384066,0.00018427,2]
[402095087,1768517439887,-332.0,0.00018431,2]
[402095089,1768517439898,-1545.58,0.00018445,2]
[402095091,1768517439907,-4892.0,0.00018466,2]
[402095093,1768517439917,-4892.0,0.000185,2]
[402095095,1768517439927,-4892.0,0.00018513,2]
[402095097,1768517439937,-13992.01875694,0.00018516,2]
[402095099,1768517439947,-500.0,0.00018521,2]
[402095101,1768517439957,-500.0,0.00018521,2]
[402095104,1768517439967,-500.0,0.00018521,2]
[402095106,1768517439976,-500.0,0.00018521,2]
[402095109,1768517439986,-500.0,0.00018521,2]
[402095113,1768517439995,-300.0,0.00018521,2]
[402095115,1768517440005,-500.0,0.00018521,2]
[402095117,1768517440014,-2154.15981258,0.00018557,4]
[402095119,1768517440023,-258.19,0.00018629,2]
[402095121,1768517440033,-1545.58,0.00018719,2]
[402095123,1768517440042,-9629.46813561,0.00018775,2]
[402095125,1768517440052,-4892.0,0.0001882,2]
[402095127,1768517440061,-4892.0,0.00018847,2]
[402095129,1768517440071,-1545.58,0.00018993,2]
[402095131,1768517440081,-1505.00727073,0.00019,2]
[402095132,1768517440090,-4892.0,0.00019041,2]
[402095133,1768517440101,-2351.0,0.00019194,2]
[402095135,1768517440110,-1545.58,0.00019267,2]
[402095137,1768517440119,-1545.58,0.00019541,2]
[402095139,1768517440128,-1545.58,0.00019815,2]
[402095141,1768517440138,-2154.15981258,0.00019889,9]
[402095143,1768517440148,-1545.58,0.00020088,2]
[402095145,1768517440157,-8969.76,0.00020145,2]
[402095147,1768517440167,-1174.96,0.00020145,2]
[402095149,1768517440175,-2769.59,0.00020145,2]
[402095151,1768517440186,-9999.99,0.00020145,2]
[402095153,1768517440195,-216.28,0.00020258,2]
[402095155,1768517440204,-1545.73681753,0.00020362,2]
[402095157,1768517440214,-155.9,0.00020587,2]
[402095159,1768517440228,-5490.84534686,0.00020639,2]
[402095162,1768517440238,-3726.35384066,0.000207,2]
[402095164,1768517440248,-250.0,0.00020869,2]
[402095166,1768517440257,-285.0,0.00021093,2]
[402095168,1768517440267,-2154.15981258,0.00021221,13]
[402095170,1768517440276,-157.7786695,0.00021841,2]
[402095172,1768517440286,-5000.0,0.00021918,2]
[402095174,1768517440295,-216.28,0.000221,2]
[402095176,1768517440305,-2154.15981258,0.00022553,18]
[402095178,1768517440314,-155.9,0.00022748,2]
[402095180,1768517440324,-5490.84534686,0.00022882,2]
[402095182,1768517440334,-3726.35384066,0.00022973,2]
[402095184,1768517440343,-10179.61309165,0.00023222,2]
[402095186,1768517440352,-3000.0,0.00023409,2]
[402095188,1768517440362,-3000.0,0.00023409,2]
[402095190,1768517440371,-3000.0,0.00023409,2]
[402095192,1768517440380,-3000.0,0.00023409,2]
[402095194,1768517440389,-500.0,0.00023409,2]
[402095196,1768517440398,-3000.0,0.00023409,2]
[402095198,1768517440408,-158.16555503,0.00023409,2]
[402095200,1768517440417,-356.4539834,0.00023409,2]
[402095202,1768517440427,-500.0,0.00023409,2]
[402095204,1768517440437,-500.0,0.00023409,2]
[402095206,1768517440447,-500.0,0.00023409,2]
[402095209,1768517440456,-500.0,0.00023409,2]
[402095211,1768517440465,-500.0,0.00023409,2]
[402095213,1768517440474,-2000.0,0.00023409,2]
[402095215,1768517440483,-500.0,0.00023409,2]
[402095217,1768517440492,-2000.0,0.00023409,2]
[402095219,1768517440502,-500.0,0.00023409,2]
[402095221,1768517440511,-2000.0,0.00023409,2]
[402095223,1768517440520,-500.0,0.00023409,2]
[402095225,1768517440530,-2000.0,0.00023409,2]
[402095227,1768517440539,-500.0,0.00023409,2]
[402095229,1768517440548,-2000.0,0.00023409,2]
[402095231,1768517440558,-316.28040979,0.00023409,2]
[402095233,1768517440567,-2000.0,0.00023409,2]
[402095235,1768517440581,-2000.0,0.00023409,2]
[402095237,1768517440590,-2000.0,0.00023409,2]
[402095239,1768517440600,-2000.0,0.00023409,2]
[402095242,1768517440610,-2000.0,0.00023409,2]
[402095244,1768517440620,-2000.0,0.00023409,2]
[402095246,1768517440632,-2500.0,0.00023409,2]
[402095248,1768517440642,-3000.0,0.00023409,2]
[402095250,1768517440651,-3000.0,0.00023409,2]
[402095252,1768517440661,-3000.0,0.00023409,2]
[402095254,1768517440670,-2718.44948238,0.00023409,2]
[402095256,1768517440680,-2500.0,0.00023409,2]
[402095258,1768517440689,-2500.0,0.00023409,2]
[402095260,1768517440700,-2500.0,0.00023409,2]
[402095262,1768517440709,-2500.0,0.00023409,2]
[402095264,1768517440719,-2500.0,0.00023409,2]
[402095266,1768517440728,-2500.0,0.00023409,2]
[402095268,1768517440737,-2500.0,0.00023409,2]
[402095270,1768517440747,-2500.0,0.00023409,2]
[402095272,1768517440757,-2500.0,0.00023409,2]
[402095274,1768517440766,-2500.0,0.00023409,2]
[402095276,1768517440775,-2154.15981258,0.00023885,23]
[402095278,1768517440785,-216.28,0.00023942,2]
[402095280,1768517440794,-8923.38,0.00024745,2]
[402095283,1768517440804,-500.0,0.00024799,2]
[402095285,1768517440814,-500.0,0.00024799,2]
[402095287,1768517440823,-500.0,0.00024799,2]
[402095289,1768517440833,-517.58562247,0.00024799,2]
[402095291,1768517440844,-500.0,0.00024799,2]
[402095293,1768517440853,-500.0,0.00024799,2]
[402095294,1768517440863,-500.0,0.00024799,2]
[402095295,1768517440872,-500.0,0.00024799,2]
[402095296,1768517440882,-500.0,0.00024799,2]
[402095297,1768517440892,-500.0,0.00024799,2]
[402095298,1768517440901,-500.0,0.00024799,2]
[402095299,1768517440910,-500.0,0.00024799,2]
[402095300,1768517440919,-500.0,0.00024799,2]
[402095301,1768517440928,-500.0,0.00024799,2]
[402095302,1768517440938,-500.0,0.00024799,2]
[402095303,1768517440947,-500.0,0.00024799,2]
[402095304,1768517440961,-155.9,0.00024908,2]
[402095305,1768517440970,-5490.84534686,0.00025125,2]
[402095306,1768517440980,-2154.15981258,0.00025217,28]
[402095308,1768517440991,-3726.35384066,0.00025246,2]
[402095309,1768517441001,-500.0,0.00025552,2]
[402095310,1768517441010,-500.0,0.00025552,2]
[402095312,1768517441020,-447.79190405,0.00025552,2]
[402095314,1768517441029,-500.0,0.00025552,2]
[402095316,1768517441039,-500.0,0.00025552,2]
[402095318,1768517441049,-500.0,0.00025552,2]
[402095320,1768517441058,-500.0,0.00025552,2]
[402095322,1768517441068,-500.0,0.00025552,2]
[402095325,1768517441078,-500.0,0.00025552,2]
[402095327,1768517441087,-500.0,0.00025552,2]
[402095329,1768517441097,-500.0,0.00025552,2]
[402095331,1768517441107,-500.0,0.00025552,2]
[402095333,1768517441116,-244.28449642,0.00025552,2]
[402095335,1768517441126,-500.0,0.00025552,2]
[402095337,1768517441136,-500.0,0.00025552,2]
[402095339,1768517441147,-500.0,0.00025552,2]
[402095341,1768517441158,-500.0,0.00025552,2]
[402095343,1768517441167,-500.0,0.00025552,2]
[402095345,1768517441177,-500.0,0.00025552,2]
[402095347,1768517441188,-500.0,0.00025552,2]
[402095349,1768517441199,-546.11438296,0.00025552,2]
[402095351,1768517441219,-272.51639976,0.00025552,2]
[402095353,1768517441230,-500.0,0.00025552,2]
[402095355,1768517441239,-500.0,0.00025552,2]
[402095357,1768517441250,-500.0,0.00025552,2]
[402095359,1768517441260,-500.0,0.00025552,2]
[402095361,1768517441270,-216.28,0.00025783,2]
[402095363,1768517441279,-1852.42,0.00025837,2]
[402095365,1768517441289,-1008.92563396,0.00026549,32]
[402095367,1768517441299,-155.9,0.00027068,2]
[402095370,1768517441308,-506.0,0.00027137,2]
[402095372,1768517441319,-5490.84534686,0.00027367,2]
[402095374,1768517441333,-3726.35384066,0.0002752,2]
[402095376,1768517441342,-157.7786695,0.00027527,2]
[402095378,1768517441352,-216.28,0.00027625,2]
[402095380,1768517441361,-1008.92563396,0.00027881,37]
[402095382,1768517441371,-265.49,0.00028159,2]
[402095384,1768517441380,-276.35,0.00028565,2]
[402095386,1768517441389,-500.0,0.0002863,2]
[402095388,1768517441398,-500.0,0.00028858,10]
[402095390,1768517441408,-500.0,0.00028858,10]
[402095392,1768517441417,-500.0,0.00028858,2]
[402095394,1768517441427,-500.0,0.00028858,10]
[402095396,1768517441436,-500.0,0.00028858,10]
[402095398,1768517441445,-500.0,0.00028858,10]
[402095400,1768517441455,-260.01024167,0.00028858,20]
[402095402,1768517441464,-500.0,0.00028858,10]
[402095404,1768517441474,-500.0,0.00028858,10]
[402095406,1768517441483,-500.0,0.00028858,10]
[402095408,1768517441492,-500.0,0.00028858,10]
[402095410,1768517441501,-1008.92563396,0.00029213,41]
[402095412,1768517441511,-155.9,0.00029229,2]
[402095414,1768517441523,-5490.84534686,0.0002961,2]
[402095416,1768517441533,-3726.35384066,0.00029793,2]
[402095418,1768517441543,-1008.92563396,0.00030545,45]
[402095420,1768517441552,-5729.0,0.00031267,2]
[402095422,1768517441562,-155.9,0.00031389,2]
[402095424,1768517441571,-500.0,0.00031479,2]
[402095426,1768517441582,-5490.84534686,0.00031853,2]
[402095429,1768517441591,-1008.92563396,0.00031877,50]
[402095431,1768517441601,-3726.35384066,0.00032066,2]
[402095433,1768517441610,-500.0,0.00032628,10]
[402095435,1768517441620,-500.0,0.00032628,10]
[402095437,1768517441635,-11847.68888326,0.00032722,2]
[402095508,1768517443291,-1.7e-07,0.00032722,2]
[402095509,1768517443304,-298.51436949,0.00032722,2]
[402095510,1768517443316,-954.72283817,0.00032722,2]
[402095512,1768517443439,-278.47155464,0.00032722,2]
[402095513,1768517443450,-1965.14269343,0.00032722,2]
[402095514,1768517443465,-7839.99911758,0.00032722,2]
[402095515,1768517443476,-1723.80089984,0.00032722,2]
[402095517,1768517443487,-1955.81964951,0.00032722,2]
[402095519,1768517443497,-3469.0,0.00032725,2]
[402095521,1768517443506,-611.13424021,0.00032762,2]
[402095522,1768517443530,-268.8,0.00032762,2]
[402095523,1768517443542,-435.88463301,0.00032762,2]
[402095524,1768517443553,-354.53810429,0.00032762,2]
[402095543,1768517444677,-500.0,0.00016354,2]
[402095544,1768517444686,-500.0,0.00016628,2]
[402095545,1768517444697,-8418.51196329,0.00032762,2]
[402095546,1768517444706,-1000.0,0.00033151,120]
[402095547,1768517444715,-370.54860606,0.00033151,120]
[402095548,1768517444735,-629.45139394,0.00033151,120]
[402095549,1768517444744,-1008.92563396,0.00033209,54]
[402095550,1768517444753,-157.7786695,0.00033214,2]
[402095551,1768517444762,-150.0,0.00033214,2]
[402095552,1768517444772,-214.55144236,0.00033222,2]
[402095553,1768517444801,-465.08686962,0.00033222,2]
[402095554,1768517444812,-2880.04780582,0.00033222,2]
[402095555,1768517444931,-500.0,0.00016902,2]
[402095556,1768517444940,-3431.03352355,0.00033222,2]
[402095557,1768517444951,-5563.77620906,0.00033222,2]
[402095558,1768517444966,-34837.06671095,0.00033222,2]
[402095559,1768517444975,-70894.94328861,0.00033222,2]
[402095560,1768517444984,-95923.377,0.00033222,2]
[402095561,1768517444994,-1000.0,0.000334,7]
[402095562,1768517445003,-155.9,0.0003355,5]
[402095563,1768517445093,-500.0,0.00033728,10]
[402095564,1768517445103,-500.0,0.00033728,10]
[402095565,1768517445112,-594.00242345,0.00033728,10]
[402095566,1768517445122,-150.0,0.00033863,60]
[402095567,1768517445130,-168.334567,0.00033863,60]
[402095568,1768517445139,-150.0,0.00033863,60]
[402095569,1768517445150,-150.0,0.00033863,60]
[402095570,1768517445159,-500.0,0.00033863,60]
[402095571,1768517445169,-500.0,0.00033863,60]
[402095572,1768517445178,-150.0,0.00033918,60]
[402095573,1768517445187,-166.97026007,0.00033918,60]
[402095574,1768517445196,-189.05002071,0.00033918,60]
[402095575,1768517445205,-500.0,0.00033918,60]
[402095576,1768517445214,-500.0,0.00033918,60]
[402095577,1768517445223,-500.0,0.00033972,10]
[402095578,1768517445232,-416.79170704,0.00033972,10]
[402095579,1768517445241,-500.0,0.00033972,2]
[402095580,1768517445251,-500.0,0.00033972,10]
[402095581,1768517445260,-500.0,0.00033972,10]
[402095582,1768517445269,-500.0,0.00033972,10]
[402095583,1768517445279,-500.0,0.00033972,10]
[402095584,1768517445288,-500.0,0.00033972,10]
[402095585,1768517445297,-500.0,0.00033972,10]
[402095586,1768517445306,-500.0,0.00033972,10]
[402095587,1768517445315,-150.0,0.00033973,60]
[402095588,1768517445324,-500.0,0.00033973,60]
[402095589,1768517445333,-500.0,0.00033973,60]
[402095590,1768517445342,-200.0,0.00034027,60]
[402095591,1768517445351,-500.0,0.00034027,60]
[402095592,1768517445360,-500.0,0.00034027,60]
[402095593,1768517445370,-300.06582175,0.00034082,60]
[402095594,1768517445379,-500.0,0.00034082,60]
[402095595,1768517445388,-5490.84534686,0.00034095,2]
[402095596,1768517445397,-224.76783786,0.00034137,60]
[402095597,1768517445406,-197.25296189,0.000343,30]
[402095598,1768517445415,-3726.35384066,0.00034339,2]
[402095599,1768517445424,-1000.0,0.000344,7]
[402095600,1768517445433,-200.0,0.00034411,30]
[402095601,1768517445442,-1008.92563396,0.00034541,58]
[402095602,1768517445451,-10056.0,0.00035,30]
[402095603,1768517445461,-500.0,0.00035232,30]
[402095604,1768517445470,-1967.01428099,0.00035308,2]
[402095605,1768517445479,-1000.0,0.000354,7]
[402095606,1768517445488,-390.38,0.00035507,40]
[402095607,1768517445498,-421.44797314,0.00035516,2]
[402095608,1768517445508,-153.07639503,0.00035613,14]
[402095609,1768517445518,-522.80017481,0.00035615,10]
[402095610,1768517445527,-500.0,0.00035615,2]
[402095611,1768517445536,-500.0,0.00035615,2]
[402095612,1768517445546,-500.0,0.00035615,2]
[402095613,1768517445555,-500.0,0.00035615,10]
[402095614,1768517445564,-500.0,0.00035615,10]
[402095615,1768517445574,-500.0,0.00035615,10]
[402095616,1768517445584,-500.0,0.00035615,10]
[402095617,1768517445593,-500.0,0.00035615,10]
[402095618,1768517445603,-500.0,0.00035615,10]
[402095619,1768517445612,-500.0,0.00035615,10]
[402095620,1768517445623,-500.0,0.00035615,10]
[402095621,1768517445637,-500.0,0.00035615,10]
[402095622,1768517445647,-500.0,0.00035615,10]
[402095623,1768517445656,-500.0,0.00035615,10]
[402095624,1768517445666,-500.0,0.00035615,10]
[402095625,1768517445678,-500.0,0.00035615,10]
[402095626,1768517445687,-500.0,0.00035615,10]
[402095627,1768517445695,-500.0,0.00035615,10]
[402095628,1768517445704,-500.0,0.00035615,10]
[402095631,1768517445713,-500.0,0.00035615,10]
[402095632,1768517445722,-202.87475067,0.00035616,10]
[402095635,1768517445731,-500.0,0.00035616,10]
[402095638,1768517445741,-500.0,0.00035616,10]
[402095641,1768517445750,-537.55277387,0.00035616,10]
[402095643,1768517445759,-500.0,0.00035616,10]
[402095645,1768517445768,-500.0,0.00035616,10]
[402095647,1768517445777,-300.0,0.00035616,2]
[402095649,1768517445786,-579.88,0.00035616,10]
[402095650,1768517445795,-555.78,0.00035616,10]
[402095651,1768517445804,-500.0,0.00035616,10]
[402095652,1768517445815,-500.0,0.00035616,10]
[402095653,1768517445824,-752.65,0.00035616,10]
[402095654,1768517445835,-1042.17,0.00035616,10]
[402095655,1768517445845,-500.0,0.00035616,10]
[402095656,1768517445854,-983.62,0.00035616,10]
[402095657,1768517445863,-500.0,0.00035616,10]
[402095658,1768517445905,-500.0,0.00035616,10]
[402095659,1768517445914,-544.73,0.00035616,10]
[402095660,1768517445923,-500.0,0.00035616,10]
[402095661,1768517445932,-500.0,0.00035616,10]
[402095662,1768517445941,-1960.08,0.00035616,10]
[402095663,1768517445950,-500.0,0.00035616,10]
[402095664,1768517445959,-500.0,0.00035616,10]
[402095665,1768517445968,-680.4,0.00035616,10]
[402095666,1768517445978,-500.0,0.00035616,10]
[402095667,1768517445987,-809.31,0.00035616,10]
[402095668,1768517445996,-500.0,0.00035616,10]
[402095669,1768517446006,-500.0,0.00035616,10]
[402095670,1768517446015,-560.96386872,0.00035616,10]
[402095671,1768517446024,-500.0,0.00035616,10]
[402095672,1768517446033,-500.0,0.00035616,10]
[402095673,1768517446043,-797.66,0.00035616,10]
[402095674,1768517446052,-500.0,0.00035616,10]
[402095675,1768517446061,-500.0,0.00035616,10]
[402095676,1768517446071,-557.01,0.00035616,10]
[402095677,1768517446080,-526.37,0.00035616,10]
[402095678,1768517446089,-152.68953797,0.00035616,10]
[402095679,1768517446098,-500.0,0.00035616,10]
[402095680,1768517446107,-500.0,0.00035616,10]
[402095681,1768517446116,-1018.58,0.00035616,10]
[402095682,1768517446124,-500.0,0.00035616,10]
[402095683,1768517446134,-664.93,0.00035616,10]
[402095684,1768517446144,-500.0,0.00035616,10]
[402095685,1768517446153,-1030.93,0.00035616,10]
[402095686,1768517446162,-500.0,0.00035616,10]
[402095687,1768517446171,-500.0,0.00035616,10]
[402095688,1768517446181,-953.96,0.00035616,10]
[402095689,1768517446190,-500.0,0.00035616,10]
[402095690,1768517446199,-741.39,0.00035616,10]
[402095691,1768517446208,-500.0,0.00035616,10]
[402095692,1768517446217,-500.0,0.00035616,10]
[402095693,1768517446226,-500.0,0.00035616,10]
[402095694,1768517446236,-568.11,0.00035616,10]
[402095695,1768517446246,-500.0,0.00035616,10]
[402095696,1768517446255,-500.0,0.00035616,10]
[402095697,1768517446265,-500.0,0.00035616,10]
[402095698,1768517446274,-500.0,0.00035616,10]
[402095699,1768517446283,-557.76,0.00035616,10]
[402095700,1768517446294,-1138.36,0.00035616,10]
[402095701,1768517446304,-610.37,0.00035616,10]
[402095703,1768517446313,-1247.28,0.00035616,10]
[402095705,1768517446322,-631.95,0.00035616,10]
[402095706,1768517446331,-917.68,0.00035616,10]
[402095707,1768517446340,-500.0,0.00035616,10]
[402095708,1768517446349,-500.0,0.00035616,10]
[402095709,1768517446358,-500.0,0.00035616,10]
[402095710,1768517446368,-500.0,0.00035616,10]
[402095711,1768517446377,-500.0,0.00035616,10]
[402095712,1768517446386,-500.0,0.00035616,10]
[402095713,1768517446395,-688.78,0.00035616,10]
[402095714,1768517446404,-619.16313479,0.00035616,10]
[402095715,1768517446413,-500.0,0.00035616,10]
[402095716,1768517446422,-500.0,0.00035616,10]
[402095717,1768517446432,-1088.0,0.00035616,10]
[402095718,1768517446441,-1775.49,0.00035616,10]
[402095719,1768517446450,-500.0,0.00035616,10]
[402095720,1768517446459,-1283.99,0.00035616,10]
[402095721,1768517446468,-500.0,0.00035616,10]
[402095722,1768517446477,-500.0,0.00035616,120]
[402095723,1768517446486,-500.0,0.00035616,10]
[402095724,1768517446497,-936.07,0.00035616,10]
[402095725,1768517446506,-1168.85,0.00035616,10]
[402095726,1768517446515,-500.0,0.00035616,10]
[402095727,1768517446525,-675.28,0.00035616,10]
[402095728,1768517446534,-500.0,0.00035616,10]
[402095729,1768517446544,-500.0,0.00035616,10]
[402095730,1768517446554,-500.0,0.00035616,10]
[402095731,1768517446563,-500.0,0.00035616,10]
[402095732,1768517446573,-1055.44,0.00035616,10]
[402095733,1768517446583,-500.0,0.00035616,10]
[402095734,1768517446592,-527.46600605,0.00035616,10]
[402095735,1768517446601,-500.0,0.00035616,10]
[402095736,1768517446611,-500.0,0.00035616,10]
[402095737,1768517446621,-554.49,0.00035616,10]
[402095738,1768517446635,-647.02,0.00035616,10]
[402095739,1768517446644,-500.0,0.00035616,10]
[402095740,1768517446654,-500.0,0.00035616,10]
[402095741,1768517446663,-500.0,0.00035616,10]
[402095742,1768517446674,-774.3,0.00035616,10]
[402095743,1768517446684,-500.0,0.00035616,10]
[402095744,1768517446694,-655.59,0.00035616,10]
[402095745,1768517446703,-500.0,0.00035616,10]
[402095746,1768517446714,-500.0,0.00035616,10]
[402095747,1768517446723,-500.0,0.00035616,10]
[402095748,1768517446733,-500.0,0.00035616,10]
[402095749,1768517446743,-500.0,0.00035616,10]
[402095750,1768517446753,-500.0,0.00035616,10]
[402095751,1768517446762,-625.96,0.00035616,10]
[402095752,1768517446771,-1030.71,0.00035616,10]
[402095753,1768517446781,-200.46997172,0.00035616,10]
[402095754,1768517446791,-500.0,0.00035616,10]
[402095755,1768517446801,-500.0,0.00035616,10]
[402095756,1768517446811,-500.0,0.00035616,10]
[402095757,1768517446820,-500.0,0.00035616,10]
[402095758,1768517446829,-500.0,0.00035616,10]
[402095759,1768517446840,-500.0,0.00035616,10]
[402095760,1768517446851,-500.0,0.00035616,10]
[402095761,1768517446860,-515.67,0.00035616,10]
[402095762,1768517446869,-500.0,0.00035616,10]
[402095763,1768517446879,-689.83,0.00035616,10]
[402095764,1768517446890,-605.58,0.00035616,10]
[402095765,1768517446899,-500.0,0.00035616,10]
[402095766,1768517446908,-986.08,0.00035616,10]
[402095767,1768517446918,-500.0,0.00035616,10]
[402095768,1768517446928,-500.0,0.00035616,10]
[402095769,1768517446940,-500.0,0.00035616,10]
[402095770,1768517446949,-151.0,0.00035616,10]
[402095771,1768517446959,-649.15,0.00035616,10]
[402095772,1768517446968,-500.0,0.00035616,10]
[402095773,1768517446977,-500.0,0.00035616,10]
[402095774,1768517446986,-500.0,0.00035616,10]
[402095775,1768517446995,-1358.1,0.00035616,10]
[402095776,1768517447005,-500.0,0.00035616,10]
[402095777,1768517447015,-671.77,0.00035616,10]
[402095778,1768517447025,-500.0,0.00035616,10]
[402095779,1768517447036,-1147.26,0.00035616,10]
[402095780,1768517447046,-500.0,0.00035616,10]
[402095781,1768517447055,-500.0,0.00035616,10]
[402095782,1768517447064,-725.53,0.00035616,10]
[402095783,1768517447073,-678.39,0.00035616,10]
[402095784,1768517447082,-500.0,0.00035616,10]
[402095785,1768517447092,-500.0,0.00035616,10]
[402095786,1768517447101,-500.0,0.00035616,10]
[402095787,1768517447111,-612.34,0.00035616,10]
[402095788,1768517447120,-500.0,0.00035616,10]
[402095789,1768517447129,-500.0,0.00035616,10]
[402095790,1768517447139,-500.0,0.00035616,10]
[402095791,1768517447149,-151.69752926,0.00035616,10]
[402095792,1768517447158,-574.59,0.00035616,10]
[402095793,1768517447167,-500.0,0.00035616,10]
[402095794,1768517447177,-635.66,0.00035616,10]
[402095795,1768517447186,-500.0,0.00035616,10]
[402095796,1768517447195,-500.0,0.00035616,10]
[402095797,1768517447206,-500.0,0.00035616,10]
[402095798,1768517447215,-500.0,0.00035616,10]
[402095799,1768517447225,-500.0,0.00035616,10]
[402095800,1768517447234,-500.0,0.00035616,10]
[402095801,1768517447244,-907.4,0.00035616,10]
[402095802,1768517447253,-500.0,0.00035616,10]
[402095803,1768517447263,-705.55,0.00035616,10]
[402095804,1768517447273,-500.0,0.00035616,120]
[402095805,1768517447282,-500.0,0.00035616,10]
[402095806,1768517447292,-500.0,0.00035616,10]